{"text_format":"1","workbook":"xlsx","n_sheets":7,"sheets":["informacje ogólne","budynki","elektronika ","auta","szkody","środki trwałe","lokalizacje"],"not_rendered":{"charts":0,"images":0,"macros":0,"external_links":0,"defined_names":4,"comments":0,"pivot_tables":0},"unopened":[],"bounds":{"document_bytes":16777216,"sheet_cells":100000,"rows_first":2000,"rows_last":500,"rows_between":2000,"halvings":0,"cell_chars":16384,"cell_head_chars":4096},"cells_cut":0,"cells_raw":0,"read":"whole","date_system":"1900"}

{"sheet":"informacje ogólne","index":0,"n_rows":10,"n_cols":11,"rows_kept":10,"cut":false,"hidden":false,"merged":[]}
["Tabela nr 1 - Informacje ogólne do oceny ryzyka w Gminie Brodnica"]
[]
["L.p.","Nazwa jednostki","NIP","REGON","PKD","Rodzaj prowadzonej działalności (opisowo)","Liczba pracowników","Liczba uczniów/ wychowanków/ pensjonariuszy","Odległość lokalizacji od najbliższego zbiornika wodnego","Czy od 1997 r. wystąpiło w jednostce ryzyko powodzi? ","Planowane imprezy w ciągu roku (nie biletowane i nie podlegające ubezpieczeniu obowiązkowemu OC)"]
[1,"Urząd Gminy","874-11-54-226","000534233",null,null,35,null,null,"nie"]
[2,"Gminna Biblioteka Publiczna w Szczuce","874-16-93-035","340180817",null,"Instytucja kultury - biblioteka",4,null,null,"nie","brak"]
[3,"Gminny Ośrodek Pomocy Społecznej","874-16-28-575",53423300028,null,"pomoc społeczna",11,null,null,"nie"]
[4,"Szkoła Podstawowa im. Janusza Korczaka w Szabdzie","874-14-32-062","001211302","8520Z","placówka oświatowo – wychowawcza",23,194,null,"nie",1]
[5," Szkoła Podstawowa im. Ziemi Michałowskiej w Gortatowie","874-14-36-781","001211294","8010B","działalność budżetowa","24",170,"5 km","nie","brak"]
[6,"Szkoła Podstawowa w Gorczenicy","874-14-32-263","001211288","8520Z","oświata - szkolnictwo",19,102,"3 km","nie"]
[7,"Gimnazjum w Szczuce","874-15-71-160","871252885","8531A","oświata - szkolnictwo ",23,160,"3 km","nie","brak"]

{"sheet":"budynki","index":1,"n_rows":76,"n_cols":19,"rows_kept":76,"cut":false,"hidden":false,"merged":[[3,7,4,7],[3,8,4,8],[3,9,3,11],[3,12,4,12],[3,13,3,18],[3,6,4,6],[55,0,55,5],[3,5,4,5],[3,4,4,4],[58,1,58,2],[5,0,5,3],[54,0,54,2],[3,0,4,0],[3,1,4,1],[3,2,4,2],[3,3,4,3],[59,0,59,5],[62,0,62,2],[73,0,73,2],[68,0,68,5],[67,0,67,2],[63,0,63,5]]}
[null,"Tabela nr 2 - Wykaz budynków i budowli w Gminie Brodnica"]
[]
[]
["lp.","nazwa budynku/ budowli ","przeznaczenie budynku/ budowli ","czy budynek jest użytkowany? (TAK/NIE)","rok budowy","wartość księgowa brutto","wartość odtworzeniowa","zabezpieczenia\n(znane zabiezpieczenia p-poż i przeciw kradzieżowe)                                      (2)","lokalizacja (adres)","Rodzaj materiałów budowlanych, z jakich wykonano budynek",null,null,"czy na poddaszu są składkowane materiały palne? ","opis stanu technicznego budynku wg poniższych elementów budynku "]
[null,null,null,null,null,null,null,null,null,"mury","stropy","dach (konstrukcja i pokrycie)",null,"konstukcja i pokrycie dachu","intalacja elekryczna","sieć wodno-kanalizacyjna oraz cenralnego ogrzewania","stolarka okienna i drzwiowa","instalacja gazowa","instalacja wentylacyjna i kominowa"]
[" 1. Urząd Gminy"]
[1,"Budynek mieszkalny-wynajmowany","mieszkalny ","tak",1910,60012.42,null,"drzwi drewniane","Karbowo ul. Małgorzatka 8"]
[2,"Budynek mieszkalny - 2 lokale wynajmowane","mieszkalny ","tak",1949,63655.3,null,"drzwi drewniane","Karbowo ul. Żmijewska 54"]
[3,"Budynek gospodarczy przy agronomówce","gospadarczy","tak",1960,2111.6,null,"drzwi drewniane","Gorczenica"]
[4,"Garaż-szkółka","garaż","nie",1960,4281.32,null,"drzwi drewniane","Karbowo"]
[5,"Remiza OSP","remiza","tak",1960,22319.78,null,"drzwi drewniane , zamek patentowy","Kominy"]
[6,"Remiza OSP","remiza","tak",1960,31044.25,null,"drzwi drewniane, zamek patentowy","Szczuka"]
[7,"Remiza OSP","remiza","tak",1977,31066.81,null,"drzwi antywłamaniowe","Gorczenica"]
[8,"Budynek mieszkalny(oddział przedszkolny) wynajmowane","mieszkalny ","tak",null,30430.799999999999,null,"drzwi drewniane, zamek zwykły","Gorczenica 24"]
[9,"Budynek przedszkolny z gospodarczym (1/2)","mieszkalno-użytkowy","tak",null,10624.2,null,"drzwi drewniane , zamek zwykły","Mszano"]
[10,"Budynek gospodarczy ","gospodarczy","tak",1979,3021.4,null,"drzwi metalowe","Gorczenica"]
[11,"Budynek mieszkalny-wynajmowany","mieszkalny ","tak",1950,49611.67,null,"drzwi drewniane, zamek zwykły","Gorczenica 52"]
[12,"Budynek mieszkalny -wynajmowany","mieszkalno-użytkowy","tak",1950,33768.65,null,"2 drzwi, jedne metalowe, drugie drewniane","Kominy 1"]
[13,"Garaż 2 segmentowy( po SKR)","garaż","nie","1960/1970",1555,null,"wrota drewniane","Gorczenica"]
[14,"Garaż 5 segmentowy( po SKR)","garaż","nie","1960/1970",4612,null,"wrota drewniane","Gorczenica"]
[15,"Garaż 8 segmentowy (po SKR)","garaż","nie","1960/1970",5483,null,"wrota drewniane","Gorczenica"]
[16,"Garaz 11 segmentowy","garaz","nie","1960/1970",9380,null,"wrota drewniane","Gorczenica"]
[17,"Warsztat ( po SKR)","budynek administracyjny","nie","1960/1970",10775,null,"drzwi drewniane","Gorczenica"]
[18,"Magazyn paliw (po SKR)",null,"nie","1960/1970",813,null,null,"Gorczenica"]
[19,"Garaz na maszyny (po SKr)","garaz","nie","1960/1970",6739,null,"wrota drewniane","Gorczenica"]
[20,"Budynek administracyjny (po SKR)",null,"nie","1960/1970",7194,null,"drzwi PCV","Gorczenica"]
[21,"Budynek mieszkalny, 1 lokal wynajety","mieszkalny ","tak",1928,27673.22,null,"budynek drewniany","Szabda"]
[22,"Budynek -świetlica","świetlica","tak",1977,226072.34,null,"drzwi antywłamaniowe z zabezpieczeniami","Szabda"]
[23,"Budynek -świetlica","świetlica","tak",1928,22777.7,null,"1 drzwi drewniane, 1 drzwi PCV, zamki patentowe","Mszano"]
[24,"Budynek-świetlica","świetlica","tak",1977,52430.95,null," 1 drzwi PCV, zamki patentowe","Bartniki"]
[25,"Budynek - świetlica","świetlica","tak",1989,214642.06,null,"1 drzwi metalowe, 2 drzwi PCV","Szczuka"]
[26,"Budynek -świetlica","świetlica","tak",1992,26750.18,null,"2 drzwi PCV, kraty na 2 oknach","Podgórz"]
[27,"Budynek -świetlica","świetlica","tak",1992,29089.61,null,"1 drzwi drewniane, 2 zamki w tym 1 patentowy","Kozi Róg"]
[28,"Budynek-świetlica ","świetlica","tak",1993,51200,null," 1 drzwi drewniane","Niewierz"]
[29,"Budynek-świetlica","świetlica","tak",1994,88662.399999999994,null,"1 drzwi PCV, zamek patentowy","Gortatowo"]
[30,"Budynek-świetlica","świetlica","tak",1997,497187.58,null,"3 drzwi wejściowe drewniane, po jednym zamku patentowym w kazdych drzwiach, kraty na oknach jednego pomieszczenia, urządzenie alarmowe-sygnalizacja dźwiekowa-powiadomienie całodobowe","Karbowo"]
[31,"Budynek mieszkalny","mieszkalny ","tak",null,196233.84,null,"3 drzwi drewniane, 1 drzwi PCV","Moczadła"]
[32,"Budynek mieszkalny","mieszkalny ","tak",null,84924.61,null,"2 drzwi drewniane","Szymkowo"]
[33,"Budynek stacji wodociągowej",null,"tak",null,52274.46,null,null,"Szymkowo"]
[34,"Budynek stacji wodociągowej",null,"tak",null,19924.68,null,null,"Mszano"]
[35,"Budynek po stacji wodociągowej","gospodarczy","tak",null,27831.3,null,"drzwi metalowe zamykane na kłódkę","Karbowo"]
[36,"Budynek mieszkalny","mieszkalny ","tak",null,211819.78,null,"2 drzwi drewniane","Gorczenica 41"]
[37,"Budynek gospodarczy-12 segmentowy","gospodarczy","tak",null,18938.2,null,"12 drzwi metalowych","Gorczenica 41"]
[38,"Garaż - 5 segmentowy (po SKR)","garaż","tak",null,6679.54,null,"wrota drewniane","Szczuka"]
[39,"Garaż 4 segmentowy(po SKR)","garaż","tak",null,4102.8900000000003,null,"wrota drewniane","Szczuka"]
[40,"Garaż 6 segmentowy (po SKR)","garaż","tak",null,5693.11,null,"wrota metalowe","Szczuka"]
[41,"Boisko ORLIK",null,null,null,1168772.8400000001,null,null,"Szczuka"]
[42,"Boisko Sportowe",null,null,null,28496.51,null,null,"Gorczeniczka"]
[43,"Boisko sportowe",null,null,null,58408.800000000003,null,null,"Kruszynki"]
[44,"Boisko sportowe",null,null,null,577898.11,null,null,"Gortatowo"]
[45,"Boisko sportowe",null,null,null,274188.48,null,null,"Mszano"]
[46,"Boisko sportowe",null,null,null,303361.78000000003,null,null,"Szabda"]
[47,"Bieżnia sportowa",null,null,null,98195.36,null,null,"Gorczenica"]
[48,"Plac zabaw",null,null,null,49952.82,null,null,"Karbowo"]
["RAZEM","RAZEM",null,null,null,{"$f":"SUM(F7:F54)","v":4812682.3500000006}]
["4. Szkoła Podstawowa w Szabdzie"]
[1,"Budynek szkolny","Oświatowo – wychowawczy","TAK",1961,null,1541000,"urządzenia odgromowe, gaśnice 6-szt. ,3 drzwi do budynku, alarm dźwiękowy obejmuje cały budynek, dozór całodobowy agencji ochrony","Szabda 59, 87-300 Brodnica","cegła","Żeromskiego","beton, papa","NIE","bardzo dobry","bardzo dobry","bardzo dobry","bardzo dobry","nie dotyczy","bardzo dobry"]
[2,"Dobudowana nowa część budynku szkolnego","sala gimnastyczna","TAK",2007,1412050.65,null,"urządzenia odgromowe, gaśnice 3 szt., alarm dźwiękowy obejmuje cały budynek, dozór całodobowy agencji ochrony","Szabda 59, 87-300 Brodnica","pustak","drewniane","drewno, papa","NIE","bardzo dobry","bardzo dobry","bardzo dobry","bardzo dobry","nie dotyczy","bardzo dobry"]
[null,"RAZEM",null,null,null,{"$f":"SUM(F57:F58)","v":1412050.65},{"$f":"SUM(G57:G58)","v":1541000}]
["5. Szkoła Podstawowa im. Ziemi Michałowskiej w Gortatowie"]
[1,"Budynek szkolny w Gortatowie z kotłownią CO",null,null,"1969r",241557.48,null,"czujki alarmowe w dwóch salach komputerowych, sekretariacie , gabinecie dyrektora, bibliotece monitorowane prze firmę AUTO-TREZOR,                               ","Gortatowo 7, 87-300 Gortatowo"]
[2,"Budynek szkolny w Cielętch z kotłownia CO",null,null,"1899r",72419.55,null,"kraty w oknach i drzwiach,alarm w pokoju nauczycielskim,                     gaśnice-szt 3 GP-4X/Z(ABC) spełniające wymagania PN92-EN-3","Gortatowo 7, 87-300 Gortatowo"]
["Razem",null,null,null,null,{"$f":"SUM(F61:F62)","v":313977.03000000003}]
["6. Szkoła Podstawowa w Gorczenicy"]
[1,"budynek szkolny","budynek oświatowy - szkoła ","tak",1964,null,1127000,"gaśnice- 15szt.,4 drzwi do budynku 8 zamków patentowych ; alarm dźwiekowy obejmuje salę komputerową, kancelarię oraz nową część budynku podłączony do telefonu dyrektora szkoły, monitorowanie obiektu przez AUTO TREZOR ","Gorczenica 87 87-300 Brodnica ","cegła ceramiczna","Gęstożebrowy typ Dz-3","dwuspadowy pokryty papą","brak poddasza","dobry","dobry","dobry","dobry","nie dotyczy","dobry"]
[2,"hala sportowa z łącznikiem","budynek oświatowo - sportowy ","tak",2002,null,3929000,"gaśnice- 15szt., 4 drzwi do budynku 8 zamków patentowych ; alarm dźwiekowy obejmuje salę komputerową, kancelarię oraz nową część budynku podłączony do telefonu dyrektora szkoły, monitorowanie obiektu przez AUTO TREZOR ","Gorczenica 87 87-300 Brodnica ","bloczki betonowe","cegła żerańska,","konstrukacj drewniana pokryty blachą","brak poddasza","dobry","dobry","dobry","dobry","nie dotyczy","dobry"]
[3,"budynek gospodarczy","magazyn","tak",1982,null,150000,"gaśnice- 2 szt.,  4 drzwi do budynku zamki patentowe.","Gorczenica 87 87-300 Brodnica ","cegła pełna",null,"konstrukcja drewniana dwuspadowy - papa ","brak poddasza","dobry","dobry","dobry","dobry","nie dotyczy","dobry"]
["Razem",null,null,null,null,null,{"$f":"SUM(G65:G67)","v":5206000}]
["7. Gimnazjum w Szczuce"]
[1,"Budynek szkolny","oświatowy","tak",1952,null,837000,"gaśnice - 10 sztuk, 2 hydranty. 3 drzwi aluminiowe, 6 zamków patentowych, alarm dźwiękowy obejmuje całą szkołę, całodobowy dozór agencji ochrony, monitoring","Szczuka 34 87-300 Brodnica","cegła ceramiczna pełna ","typu Kleina ","dwuspadowy kryty blachą","nie","bardzo dobry","dobry","bardzo dobry","dobry","nie dotyczy","dobry"]
[2,"Budynek gospodarczy","magazyn","nie",1952,4341.5,null,"budynek do rozbiórki ","Szczuka 34 87-300 Brodnica","cegła palona","typu Kleina ","drewniany dwuspadowy eternit","brak poddasza","nie dotyczy","dobry","bardzo dobry","dobry","nie dotyczy","dobry"]
[3,"Dobudowana nowa część budynku","oświatowy","tak",2005,null,923000,"gaśnice - 10 sztuk, 2 hydranty. 3 drzwi aluminiowe, 6 zamków patentowych, alarm dźwiękowy obejmuje całą szkołę, całodobowy dozór agencji ochrony, monitoring","Szczuka 34 87-300 Brodnica","żelbetowa wypełniona gazobetonem","płyty monolityczne żerańskie","dwuspadowy pokryty blachodachówką ","nie","bardzo dobry","dobry","bardzo dobry","dobry","nie dotyczy","dobry"]
[4,"Sala sportowa z zapleczem","oświatowy","tak",2011,4514150.72,null,"gaśnice - 2 sztuki, 2 hydranty. 2 drzwi aluminiowe,alarm dźwiękowy obejmuje całą szkołę, całodobowy dozór agencji ochrony, monitoring","Szczuka 34 87-300 Brodnica","konstrukcyjne murowane z bloczków M6 na zaprawie cem.wap.","zelbetowe monolityczne typu FILIGRAN","w konstrukcji stalowej w postaci kratownic","nie","bardzo dobry","bardzo dobry","bardzo dobry","bardzo dobry","nie dotyczy","bardzo dobry"]
["Razem",null,null,null,null,{"$f":"SUM(F70:F73)","v":4518492.22},{"$f":"SUM(G70:G73)","v":1760000}]
[]
[null,null,null,null,"Łącznie",{"$f":"SUM(F74,F63,F59,F55)","v":11057202.25},{"$f":"SUM(G74,G68,G59)","v":8507000}]

{"sheet":"elektronika ","index":2,"n_rows":131,"n_cols":4,"rows_kept":131,"cut":false,"hidden":false,"merged":[[2,0,2,3],[27,0,27,3],[30,0,30,3],[73,0,73,3],[58,0,58,3],[37,1,37,2],[43,0,43,1],[44,0,44,3],[57,1,57,2],[38,0,38,3],[4,0,4,3],[61,0,61,3],[64,0,64,1],[66,0,66,3],[128,1,128,2],[68,0,68,3],[100,0,100,3],[109,0,109,3],[99,1,99,2],[76,1,76,2],[88,0,88,3],[115,0,115,1],[118,0,118,3],[123,0,123,3],[125,0,125,1],[120,0,120,3],[87,1,87,2],[122,0,122,1],[77,0,77,3],[130,1,130,2],[129,1,129,2]]}
["Tabela nr 3 - Wykaz sprzętu elektronicznego w Gminie Brodnica"]
[]
["Wykaz sprzętu elektronicznego stacjonarnego"]
["Lp.","Nazwa  ","Rok produkcji","Wartość księgowa brutto"]
[" 1. Urząd Gminy"]
[1,"Zestaw komputerowy -sieć",2009,3006.99]
[{"$f":"A6+1","v":2},"Zestaw komputerowy-sieć ",2009,3006.99]
[2,"Zestaw komputerowy-sieć",2009,3075.99]
[3,"Zestaw komputerowy-sieć",2009,3006.99]
[3,"Zestaw komputerowy-sieć",2009,3006.99]
[4,"Drukarka Brother",2009,1199]
[4,"Kopiarka Ricoh 1027",2009,3477]
[5,"Drukarka",2010,1795]
[5,"Zestaw komputerowy-sieć",2010,2424.3000000000002]
[6,"Kserokopiarka",2010,14490]
[6,"Ups APC Smart-UPS 1500",2010,2947.7]
[7,"Zestaw komputerowy-sieć",2011,2094.96]
[7,"Drukarka HP",2012,1243.83]
[8,"Klimatyzator Whirpol",2012,3013.5]
[8,"Serwer Ifostrada Pomorza i Kujaw-sieć",2012,3660]
[9,"Drukarka Xerox",2012,2313.9899999999998]
[9,"Komputer-sieć",2013,2271.4699999999998]
[10,"Komputer-sieć",2013,2195.16]
[10,"Monitor BENQ 24",2013,947.51]
[11,"Serwer DELL POWEREDGE1950",2013,2294]
[11,"Zestaw komputerowy-sieć",2013,3386.5]
[null,"RAZEM",null,{"$f":"SUM(D6:D26)","v":64857.87}]
["2. Gminna Biblioteka Publiczna"]
[1,"Komputer HP, monitor",2013,2886.6]
[null,"RAZEM",null,{"$f":"SUM(D29:D29)","v":2886.6}]
[" 3. Gminny Ośrodek Pomocy Społecznej"]
[1,"zestaw komputerowy",2009,2591.23]
[2,"komputer ACER",2009,590]
[3,"zestaw komputerowy",2009,2899]
[4,"monitor LG 19\"",2009,569]
[5,"zestaw komputerowy",2010,2849.99]
[6,"kserokopiarka Toshiba e-Studio 2006",2013,2001.2]
[null,"RAZEM","x",{"$f":"SUM(D32:D37)","v":11500.42}]
["4.  Szkoła Podstawowa w Szabdzie"]
[1,"Kopiarka DP-8016 PANASONIC",2009,3050]
[2,"Zestaw komputerowy Nettop AdaX",2009,1059]
[3,"Router (IPS)",2012,792]
[4,"Drukarka BROTHER HL3040CN",2013,728]
["RAZEM","x",null,{"$f":"SUM(D40:D43)","v":5629}]
["5. Szkoła Podstawowa im. Ziemi Michałowskiej w Gortatowie"]
[1,"RADIOMAGNETOFON GRUNDING",2009,199]
[2,"ZESTAW KOMPUTEROWY ( STACJA+MONITOR DELL)",2010,2066]
[3,"RADIOMAGNETOFON GRUNDING",2009,240]
[4,"RADIOMAGNETOFON PHILIPS",2009,250]
[5,"DRUKARKA BRODHER",2009,270]
[6,"RADIOMAGNETOFON PHILIPS",2009,240]
[7,"DRUKARKA BRODHER",2010,295]
[8,"KSEROKOPIARKA RICOH AFICIO MP 201 SPF",2012,4200]
[9,"DRUKARKA BRODHER 195C ",2011,269]
[10,"ZESTAW KOMPUTEROWY Z OPROGRAMOWANIEM",2010,4880.5]
[11,"RADIOMAGNETOFON GRUDNIG",2011,500]
[12,"RADIMAGNETOFON ELTRA",2011,169]
[null,"Razem",null,{"$f":"SUM(D46:D57)","v":13578.5}]
["6. Szkoła Podstawowa w Gorczenicy"]
[1,"3 Tablice interaktywne z zawieszeniem ściennym",2010,18098.310000000001]
[null,"RAZEM",null,{"$f":"SUM(D60)","v":18098.310000000001}]
["7. Gimnazjum w Szczuce"]
[1,"1 zestaw komputerowy do ksiegowości",2009,1792]
[2,"1 zestaw komputerowy do sekretariatu",2009,1792]
["RAZEM",null,null,{"$f":"SUM(D63:D64)","v":3584}]
[]
["Wykaz sprzętu elektronicznego przenośnego "]
["Lp.","Nazwa  ","Rok produkcji","Wartość księgowa brutto"]
[" 1. Urząd Gminy"]
[1,"Zestaw przenośny dla inkasenta",2009,14786.4]
[2,"Laptop",2011,1699]
[3,"Cyfrowy aparat fotograficzny",2012,579.01]
[null,"RAZEM",null,{"$f":"SUM(D70:D72)","v":17064.41}]
[" 3. Gminny Ośrodek Pomocy Społecznej"]
[1,"Notebook LENOVO",2010,2699]
[2,"Projektor BENQMP670",2010,2490]
[null,"RAZEM","x",{"$f":"SUM(D75:D76)","v":5189}]
["4.  Szkoła Podstawowa w Szabdzie"]
[1,"Wizualizer",2010,2207.96]
[2,"3 tablice interaktywne, SmartBoard 3 projektory, 3 noteb.",2010,35285.85]
[3,"Projektor Sanyo PLC-XD2600",2012,1700]
[4,"Notebook Samsung N102S 10.1",2012,18699.810000000001]
[5,"Notebook 15.6 (B0Y40EA)",2012,1889.99]
[6,"Tablica interaktywna  SamarBoard",2012,5990]
[7,"Projektor krutkoogniskowy",2012,4700]
[8,"Tablica interaktywna SmartBoard, projektor Vivitek D871",2013,6620]
[9,"NOTEBOOK lENOvO g500c",2013,1671]
[null,"RAZEM","x",{"$f":"SUM(D79:D87)","v":78764.609999999986}]
["5. Szkoła Podstawowa im. Ziemi Michałowskiej w Gortatowie"]
[1,"LAPTOP ASUS",2010,2000]
[2,"NETBOOK SZTUK 5",2010,12941]
[3,"WIZUALIZER SZT 2",2010,4415.92]
[4,"NETBOOK PACKARD BELL",2011,2500]
[5,"NETEBOOK DELL 15'6",2010,2600]
[6,"Radioodtwarzacz Bombox szt 3",2013,998]
[7,"projektor BENQ",2013,1320]
[8,"TABLICE INTERAKTYWNE WRAZ Z OPROGRAMOWANIEM 5 ZESTAWÓW",2010,17994]
[9,"PROJEKTOR O BARDZO KRÓTKIEJ OGNISKOWEJ SZT 5",2010,15704.9]
[10,"MIKROFONY BEZPRZEWODOWE ZESTAW",2011,699]
[null,"Razem",null,{"$f":"SUM(D90:D99)","v":61172.82}]
["6. Szkoła Podstawowa w Gorczenicy"]
[1,"Notebook samsung N102S dla ucznia 17 sztuk ",2012,18699.810000000001]
[2,"Notebook 15,6 dla nauczyciela ",2012,1889.99]
[3,"3 projektory",2010,9422.94]
[4,"3 Notebook",2010,7764.6]
[5,"Wizualizer",2010,2207.96]
[6,"Tablica interaktywna ",2012,5990]
[7,"Projektor krótkoogniskowy ",2012,4700]
[null,"RAZEM",null,{"$f":"SUM(D102:D108)","v":50675.3}]
["7. Gimnazjum w Szczuce"]
[1,"Tablica interaktywna Interwrite DualBoard",2009,4331]
[2,"komputer przenosny Kalifornia Access ",2009,2683.5]
[3,"Maszyna myjąca Lavor Free 4",2011,9840]
[4,"Notebook Samsung NP270E5E",2013,1183.5]
[5,"Notebook Samsung NP270E5E",2013,1183.5]
["RAZEM",null,null,{"$f":"SUM(D111:D115)","v":19221.5}]
[]
[]
["Wykaz monitoringu wizyjnego"]
["Lp.","Nazwa  ","Rok produkcji","Wartość księgowa brutto"]
["4.  Szkoła Podstawowa w Szabdzie"]
[1,"Kamery monitorujące na zewnątrz szkoły",2013,3083.61]
["RAZEM","x",null,{"$f":"SUM(D122:D122)","v":3083.61}]
["7. Gimnazjum w Szczuce"]
[1,"Monitoring częściowo wewnatrz budynku i na zewnatrz",2010,16800]
["RAZEM",null,null,{"$f":"SUM(D125:D125)","v":16800}]
[]
[]
[null,"Razem sprzęt stacjonarny",null,{"$f":"SUM(D27,D30,D38,D44,D58,D61,D65)","v":120134.7}]
[null,"Razem sprzęt przenośny",null,{"$f":"SUM(D73,D77,D88,D100,D109,D116)","v":232087.64}]
[null,"Razem monitoring wizyjny",null,{"$f":"SUM(D123,D126)","v":19883.61}]

{"sheet":"auta","index":3,"n_rows":17,"n_cols":20,"rows_kept":17,"cut":false,"hidden":false,"merged":[[5,0,5,10],[2,12,4,12],[2,1,4,1],[2,2,4,2],[2,11,4,11],[2,9,4,9],[2,10,4,10],[2,19,4,19],[2,3,4,3],[2,4,4,4],[2,17,3,18],[2,15,3,16],[2,13,4,13],[2,14,4,14],[1,0,1,8],[2,6,4,6],[2,5,4,5],[2,7,4,7],[2,8,4,8],[2,0,4,0]]}
["Tabela nr 4 - Wykaz pojazdów w Gminie Brodnica"]
["Dane pojazdów"]
["Lp.","Marka","Typ, model","Nr podw./ nadw.","Nr rej.","Rodzaj         (osobowy/ ciężarowy/ specjalny)","Poj.","Rok prod.","Data I rejestracji","Ilość miejsc","Ładowność","Dopuszczalna masa całkowita","Przebieg","Zabezpieczenia przeciwkradzieżowe","Suma ubezpieczenia (wartość pojazdu z VAT)","Okres ubezpieczenia OC i NW",null,"Okres ubezpieczenia AC i KR",null,"Zielona Karta (kraj)"]
[]
[null,null,null,null,null,null,null,null,null,null,null,null,null,null,null,"Od","Do","Od","Do"]
[" 1. Urząd Gminy"]
[1,"VOLKSWAGEN","TRANSPORTER T5","Wv2ZZZ7HZ5X021774","CBR 02HC","Ciężarowy",1896,2005,"2006-02-16",9,860,2800,109952,"Autoalarm",32300,"16-02-2015","15-02-2016","16-02-2015","15-02-2016"]
[2,"DAEWOO","Lanos","KLATF48YEWB253414","CBR 95ML","Osobowy",1498,1998,"1998-12-01",5,null,1595,null,null,null,"OC 30-11-2014 NNW 01.12.2014","OC 29-11-2015 NNW 29.11.2015"]
[3," Przyczepka",null," SU9LA075060BR1161","CBR 89HG"," Przyczepka",null,2005,null,null,null,null,null,null,null,"05-04-2015","04-04-2016"]
[4,"MTZ","Belarus 952.3","09902757;","CBR 68RV","Ciągnik  rolniczy","4750/66 kW",2008,"2008-07-21",1,null,null,"3439 mt/h",null,50400,"18-07-2014","17-07-2015","18-07-2014","17-07-2015"]
[5,"Renault","Master","VF1FDAADS18009324","CBR 54SH","osobowy",2.5,1998,"1998-04-28",null,null,null,null,null,null,"07-04-2015","06-04-2016"]
[6,"Pronar","T 653/2","SZB6530XX81X04034","CBR 31RT","przyczepa ciężar.",null,2008,"2008-12-12",null,null,1200,null,null,13000,"03-12-2014","03-12-2015","03-12-2014","03-12-2015"]
[7,"Lublin"," II MW","SUL332412W0034216","CBR94YH","Specjalny",2200,1998,null,null,null,null,null,null,null,"18-12-2014","17-12-2015"]
[8,"HL900","40TSA",20870,"CBR 6S15","Przyczepka gaśnicza",null,1980,null,null,null,null,null,null,null,"15.06.2014","14.06.2015"]
[9,"Fiat ","DUCATO","ZFA25000001568619","CBR6T56","ciężarowy",2198,2008,null,null,null,null,null,null,null,"04.07.2014","03.07.2015"]
[10,"DAEWOO"," Lublin II 3324","SUL332412W0033705","CBR 3X73","osobowy",2417,1998,null,null,null,null,null,null,null,"27-05-2014","26-05-2015"]
[11,"Pronar","T130","SZB1300XXB1X00191","CBR1S02","przyczepa ciężarowa rolnicza",null,2011,null,null,null,null,null,null,null,"19.02.2015","18.02.2016"]

{"sheet":"szkody","index":4,"n_rows":11,"n_cols":4,"rows_kept":11,"cut":false,"hidden":false,"merged":[[2,0,2,3],[4,0,7,0],[10,0,10,1]]}
["Tabela nr 5 - Szkodowość w Gminie Brodnica"]
[]
["Informacje o szkodach w ostatnich 3 latach"]
["Rok","Data","Suma wypłaconych odszkodowań","Krótki opis szkód"]
[2011,"15.07",25366,"pożar w mieszkaniu na parterze w budynku mieszkalnym Gorczenica 41"]
[null,"19.08",585,"OC dróg"]
[null,"19.08",725.86,"OC dróg"]
[null,"09.11",1700,"uszkodzenie projektora"]
[2012,"brak",0,"brak"]
[2013,"29.08",14516.56,"OC komunikacyjne CBR 02HC"]
["Łącznie",null,{"$f":"SUM(C5:C10)","v":42893.42}]

{"sheet":"środki trwałe","index":5,"n_rows":12,"n_cols":4,"rows_kept":12,"cut":false,"hidden":false,"merged":[[2,1,2,3]]}
["Tabela nr 6. Wykaz środków trwałych"]
[]
[null,"INFORMACJA O MAJĄTKU TRWAŁYM"]
["Lp.","Jednostka","Urządzenia i wyposażenie","W tym zbiory bibioteczne"]
[1," Urząd Gminy",{"$f":"429237.66+2495.76+2755.2","v":434488.62}]
[2,"Gminna Biblioteka Publiczna",170281.38,137034.78]
[3," Gminny Ośrodek Pomocy Społecznej",56692.65,0]
[4,"Szkoła Podstawowa im. Janusza Korczaka w Szabdzie",246347.3,5473.64]
[5," Szkoła Podstawowa im. Ziemi Michałowskiej w Gortatowie",{"$f":"57447.25+849+1524.75+4489.5","v":64310.5},17802.93]
[6,"Szkoła Podstawowa w Gorczenicy",139658.23999999999,14447.83]
[7,"Gimnazjum w Szczuce",195612.56,23077.98]
[null,"Razem",{"$f":"SUM(C5:C11)","v":1307391.25},{"$f":"SUM(D5:D11)","v":197837.16}]

{"sheet":"lokalizacje","index":6,"n_rows":12,"n_cols":3,"rows_kept":12,"cut":false,"hidden":false,"merged":[[2,0,2,2],[4,0,4,2],[7,0,7,2],[9,0,9,2]]}
[null,"Tabela nr 7"]
[]
["WYKAZ LOKALIZACJI, W KTÓRYCH PROWADZONA JEST DZIAŁALNOŚĆ ORAZ LOKALIZACJI, GDZIE ZNAJDUJE SIĘ MIENIE NALEŻĄCE DO JEDNOSTEK GMINY BRODNICA (nie wykazane w załączniku nr 1 - poniższy wykaz nie musi być pełnym wykazem lokalizacji)"]
["Lp.","Lokalizacja (adres)","Zabezpieczenia (znane zabezpieczenia p-poż i przeciw kradzieżowe)"]
["2. Gminna Biblioteka Publiczna"]
[1,"Szczuka 34, 87-300 Brodnica","alarm, 1 gaśnica proszkowa"]
[2,"Szabda, 87-300 Brodnica","alarm, 1 gaśnica proszkowa"]
["3. Gminny Ośrodek Pomocy Społecznej"]
[1,"ul. Piwna 4, 87-300 Brodnica","kraty w oknach, alarm połączony z agencją ochrony, gaśnica proszkowa"]
[" 4. Szkoła Podstawowa w Szabdzie"]
["1.","Mszano 22, 87-300 Brodnica","gaśnica proszkowa abc, 1 szt."]
["2.","Karbowo, ul. Klubowa 25","gaśnica proszkowa abc, 1 szt."]